bitfinex/quotes_SOLUSD_20250305
["timestamp","ask_amount","ask_price","bid_price","bid_amount"]
[1741216148545,26.15556373,146.05,145.98,94.4950497]
[1741216148837,26.15556373,146.05,146.03,11.83028813]
[1741216149149,10.74527955,146.05,146.03,11.83028813]
[1741216150148,10.74527955,146.05,146.04,11.83028813]
[1741216150332,10.74527955,146.05,146.04,13.44608813]
[1741216150932,10.74527955,146.05,146.04,325.44608813]
[1741216151360,10.74527955,146.05,146.04,1.6158]
[1741216151656,10.74527955,146.05,146.02,6.2899]
[1741216152228,0.033,146.05,146.02,6.2899]
[1741216154359,0.033,146.05,146.02,24.75296824]
[1741216155157,0.033,146.05,146.03,18.46306824]
[1741216155541,0.033,146.05,146.04,18.46306824]
[1741216155943,0.033,146.05,146.04,25.31046824]
[1741216156150,0.033,146.05,146.04,18.46306824]
[1741216157140,0.033,146.05,146.04,25.31046824]
[1741216158962,0.033,146.05,146.04,337.31046824]
[1741216160257,0.033,146.05,146.04,25.31046824]
[1741216160459,0.033,146.05,146.04,18.46306824]
[1741216162158,0.033,146.05,146.04,25.31046824]
[1741216166967,0.033,146.05,146.04,25.45262981]
[1741216167174,0.033,146.05,146.04,28.48425008]
[1741216167347,0.033,146.05,146.04,47.13389894]
[1741216167668,0.033,146.05,146.04,359.13389894]
[1741216167868,0.033,146.05,146.04,357.69647867]
[1741216171868,0.033,146.05,146.04,20.05726824]
[1741216172554,0.033,146.05,146.04,20.25158922]
[1741216173970,0.033,146.05,146.04,20.39375079]
[1741216174178,0.033,146.05,146.04,40.48084328]
[1741216174850,0.033,146.05,146.04,352.48084328]
[1741216175051,0.033,146.05,146.04,351.04339965]
[1741216175576,0.033,146.05,146.04,41.04339965]
[1741216175877,0.033,146.05,146.04,42.48055309]
[1741216177173,0.033,146.05,146.04,21.83090423]
[1741216178173,0.033,146.05,146.04,40.48055309]
[1741216178378,0.033,146.09,146.06,0.14216157]
[1741216178578,0.033,146.09,146.08,11.80998922]
[1741216179473,0.033,146.09,146.08,18.65548922]
[1741216181961,0.033,146.09,146.08,330.65548922]
[1741216183879,0.033,146.09,146.08,330.79765079]
[1741216184286,0.033,146.09,146.08,411.69765079]
[1741216185680,0.033,146.09,146.08,477.58725653]
[1741216185865,0.033,146.09,146.08,483.99265653]
[1741216186688,0.033,146.09,146.08,171.99265653]
[1741216189686,0.033,146.09,146.08,483.99265653]
[1741216191992,0.033,146.09,146.08,411.69765079]
[1741216192495,0.033,146.09,146.08,99.69765079]
[1741216194281,0.033,146.09,146.08,118.34729965]
[1741216195379,0.033,146.09,146.08,430.34729965]
[1741216196901,0.033,146.09,146.08,566.64729965]
[1741216197098,0.033,146.14,146.08,578.45728887]
[1741216197280,0.033,146.14,146.13,11.80998922]
[1741216198385,0.033,146.14,146.13,18.65318922]
[1741216200191,0.033,146.14,146.13,330.65318922]
[1741216200388,0.033,146.14,146.13,430.34499965]
[1741216200585,0.033,146.18,146.17,18.79181043]
[1741216200904,0.033,146.18,146.17,111.50179965]
[1741216201076,0.033,146.18,146.17,117.60179965]
[1741216201476,0.0001,146.19,146.17,257.62204294]
[1741216201690,0.0001,146.19,146.18,34.03764849]
[1741216201880,0.0001,146.19,146.18,32.03764849]
[1741216202602,0.0001,146.19,146.18,45.47991391]
[1741216203999,0.0001,146.19,146.18,18.41145464]
[1741216204298,0.0001,146.19,146.15,18.41145464]
[1741216204607,81.0001,146.19,146.13,18.41145464]
[1741216204786,81.0001,146.19,146.12,24.51145464]
[1741216204981,81.0001,146.19,146.11,99.31145464]
[1741216205308,81.0001,146.19,146.15,18.41145464]
[1741216207606,0.0001,146.19,146.16,18.41145464]
[1741216208701,0.0001,146.19,146.15,18.41145464]
[1741216209205,0.0001,146.19,146.16,18.41145464]
[1741216209810,0.0001,146.19,146.15,18.41145464]
[1741216211881,0.0001,146.19,146.14,312.0]
[1741216212081,0.0001,146.19,146.17,18.41145464]
[1741216212921,0.0001,146.19,146.18,18.41145464]
[1741216213091,0.0001,146.19,146.18,37.20326507]
[1741216213425,0.0001,146.19,146.18,119.53924312]
[1741216214306,0.0001,146.19,146.18,126.38004312]
[1741216214697,0.0001,146.19,146.18,269.06436626]
[1741216214902,0.0001,146.2,146.19,37.20326507]
[1741216215090,0.033,146.23,146.22,38.79181043]
[1741216215292,0.033,146.23,146.22,138.10326507]
[1741216216211,0.033,146.23,146.22,450.10326507]
[1741216216397,0.033,146.23,146.22,456.94226507]
[1741216218812,0.033,146.23,146.22,593.24226507]
[1741216219017,0.033,146.26,146.25,20.0]
[1741216219222,0.033,146.26,146.25,120.88888541]
[1741216219436,0.033,146.26,146.25,139.53853427]
[1741216220094,0.033,146.32,146.26,19.07613357]
[1741216220311,0.033,146.32,146.31,18.41145464]
[1741216220508,0.033,146.32,146.31,37.20326507]
[1741216221214,0.033,146.32,146.31,118.10326507]
[1741216221595,0.033,146.32,146.31,254.40326507]
[1741216221790,0.033,146.32,146.31,573.23806507]
[1741216222204,0.033,146.32,146.31,573.52238821]
[1741216222495,0.033,146.32,146.31,261.52238821]
[1741216222803,0.033,146.32,146.31,261.23806507]
[1741216224099,0.033,146.32,146.31,279.93384285]
[1741216224296,0.033,146.32,146.31,281.93384285]
[1741216225497,0.033,146.32,146.31,593.93384285]
[1741216225906,0.033,146.32,146.31,575.52238821]
[1741216227019,0.033,146.32,146.31,593.93384285]
[1741216229625,0.033,146.32,146.31,591.93384285]
[1741216229809,0.033,146.32,146.31,254.40326507]
[1741216230620,0.033,146.32,146.31,18.41145464]
[1741216230824,0.033,146.32,146.3,18.41145464]
[1741216231005,0.033,146.32,146.28,99.31145464]
[1741216232304,0.033,146.32,146.28,80.9]
[1741216233222,0.033,146.32,146.27,312.0]
[1741216233428,1.5097,146.3,146.22,217.2]
[1741216233728,1.5097,146.3,146.23,18.41145464]
[1741216235729,1.5097,146.3,146.25,18.41145464]
[1741216236130,1.5097,146.3,146.24,99.54964886]
[1741216236437,1.5097,146.3,146.24,392.9]
[1741216239332,1.5097,146.3,146.24,80.9]
[1741216240734,81.0,146.29,146.21,18.41145464]
[1741216241114,1.44747669,146.28,146.2,99.31145464]
[1741216241310,1.44747669,146.28,146.19,0.03]
[1741216241311,81.0,146.27,146.19,0.03]
[1741216242336,3.04497669,146.26,146.19,0.03]
[1741216242630,81.0,146.25,146.19,0.03]
[1741216242825,81.0,146.25,146.19,18.44145464]
[1741216243231,1.5975,146.26,146.2,18.41145464]
[1741216244342,1.5975,146.26,146.19,99.34145464]
[1741216245034,1.5975,146.26,146.19,0.03]
[1741216245424,1.5975,146.26,146.19,312.03]
[1741216248342,81.0,146.25,146.19,312.03]
[1741216249731,82.44747669,146.25,146.19,0.03]
[1741216252125,81.0,146.25,146.19,0.03]
[1741216252824,81.0,146.25,146.19,312.03]
[1741216253945,81.0,146.25,146.19,318.8701]
[1741216254522,1.5975,146.26,146.19,418.18155464]
[1741216254729,1.5975,146.26,146.2,18.41145464]
[1741216255950,1.5975,146.26,146.21,18.41145464]
[1741216256332,6.0428,146.29,146.21,18.41145464]
[1741216256333,6.0428,146.29,146.24,18.41145464]
[1741216256633,0.033,146.26,146.25,18.41145464]
[1741216257744,0.033,146.26,146.24,25.24925464]
[1741216258122,0.033,146.26,146.24,6.8378]
[1741216258439,0.033,146.26,146.22,82.4777855]
[1741216258440,0.033,146.26,146.23,25.24975464]
[1741216258637,0.033,146.26,146.24,312.0]
[1741216260933,0.033,146.26,146.24,318.838]
[1741216261134,0.033,146.26,146.25,18.41145464]
[1741216262331,0.033,146.26,146.25,25.24905464]
[1741216263961,0.033,146.26,146.25,106.14905464]
[1741216264141,0.033,146.26,146.25,126.37621506]
[1741216264326,0.033,146.32,146.26,18.79181043]
[1741216264529,0.033,146.32,146.31,18.41145464]
[1741216265161,0.033,146.32,146.29,18.41145464]
[1741216265333,0.033,146.32,146.3,18.41145464]
[1741216265531,0.033,146.32,146.31,18.41145464]
[1741216266557,0.033,146.32,146.31,25.24625464]
[1741216267150,0.033,146.32,146.31,337.24625464]
[1741216270452,0.033,146.32,146.31,418.14625464]
[1741216270961,0.033,146.32,146.31,106.14625464]
[1741216273965,0.033,146.32,146.31,418.14625464]
[1741216274165,0.033,146.32,146.31,392.9]
[1741216276264,0.033,146.32,146.31,312.0]
[1741216277169,0.033,146.32,146.27,80.9]
[1741216278691,1.6321,146.32,146.25,80.9]
[1741216278853,82.6321,146.32,146.25,80.9]
[1741216279368,84.07957669,146.32,146.25,80.9]
[1741216279562,82.6321,146.32,146.25,80.9]
[1741216281374,82.6321,146.32,146.25,87.7375]
[1741216281688,82.6321,146.32,146.25,106.14895464]
[1741216282191,82.6321,146.32,146.26,18.41145464]
[1741216282350,1.6321,146.32,146.28,18.41145464]
[1741216282551,0.033,146.32,146.28,18.41145464]
[1741216282961,0.033,146.32,146.27,18.41145464]
[1741216283187,0.033,146.32,146.26,106.14815464]
[1741216284754,0.033,146.32,146.26,418.14815464]
[1741216285260,0.033,146.32,146.26,392.9]
[1741216285475,1.5339,146.31,146.26,80.9]
[1741216286471,6.5661,146.29,146.25,0.03]
[1741216286784,81.0,146.28,146.25,0.03]
[1741216289787,81.0,146.28,146.25,0.03]
[1741216291998,82.44747669,146.27,146.25,0.03]
[1741216293867,1.5578,146.26,146.25,0.03]
[1741216311804,1.44747669,146.28,146.25,0.03]
[1741216312007,3.11247669,146.31,146.25,0.03]
[1741216312795,1.48047669,146.32,146.25,11.82002083]
[1741216312998,81.0,146.3,146.25,11.82002083]
[1741216313404,81.033,146.32,146.25,0.03]
[1741216314503,1.44747669,146.31,146.25,0.03]
[1741216314700,82.48047669,146.32,146.25,0.03]
[1741216314894,81.033,146.32,146.25,0.03]
[1741216315211,81.033,146.32,146.25,18.43903492]
[1741216315896,81.033,146.32,146.26,18.40903492]
[1741216316093,82.48047669,146.32,146.25,0.03]
[1741216317514,82.48047669,146.32,146.25,312.03]
[1741216317715,81.0,146.31,146.25,0.03]
[1741216320901,81.0,146.3,146.25,0.03]
[1741216322122,81.0,146.3,146.25,18.43903492]
[1741216323315,81.0,146.3,146.25,25.27613492]
[1741216323509,81.0,146.3,146.25,0.03]
[1741216325930,82.44747669,146.29,146.25,0.03]
[1741216327642,99.64964886,146.28,146.25,0.03]
[1741216327811,82.44747669,146.27,146.25,0.03]
[1741216332039,81.0,146.27,146.25,0.03]
[1741216332245,81.0,146.29,146.25,0.03]
[1741216347756,93.19275624,146.31,146.25,0.03]
[1741216348951,10.71227955,146.3,146.25,0.03]
[1741216349662,1.44747669,146.29,146.25,0.03]
[1741216350756,12.15975624,146.29,146.25,0.03]
[1741216352655,93.15975624,146.29,146.25,0.03]
[1741216352860,10.71227955,146.28,146.25,0.03]
[1741216353063,81.0,146.27,146.25,0.03]
[1741216354351,82.44747669,146.27,146.25,0.03]
[1741216355059,81.0,146.27,146.25,0.03]
[1741216359466,10.71227955,146.28,146.25,0.03]
[1741216361659,10.71227955,146.3,146.25,0.03]
[1741216365071,15.46059511,146.3,146.25,0.03]
[1741216365365,15.46059511,146.3,146.26,6.2902]
[1741216365757,15.46059511,146.3,146.26,7.7927]
[1741216366756,15.46059511,146.3,146.26,14.6298]
[1741216367269,0.033,146.31,146.26,14.6298]
[1741216367672,0.033,146.31,146.26,7.7927]
[1741216368671,0.033,146.31,146.26,14.6298]
[1741216369266,0.033,146.31,146.26,7.7927]
[1741216372779,0.033,146.31,146.26,19.57562724]
[1741216373581,0.033,146.31,146.27,11.78292724]
[1741216374759,0.033,146.31,146.27,18.61942724]
[1741216376583,0.033,146.31,146.27,11.78292724]
[1741216377182,0.033,146.31,146.27,18.61942724]
[1741216378180,0.033,146.31,146.27,11.78292724]
[1741216379680,0.033,146.31,146.27,323.78292724]
[1741216380280,0.033,146.31,146.27,312.0]
[1741216380583,0.033,146.31,146.27,323.78292724]
[1741216381983,0.033,146.31,146.26,107.31242724]
[1741216382582,0.033,146.31,146.27,11.78292724]
[1741216383083,0.033,146.31,146.27,18.61922724]
[1741216383273,0.033,146.31,146.27,6.8363]
[1741216383472,0.033,146.31,146.27,18.61922724]
[1741216384284,0.033,146.31,146.27,11.78292724]
[1741216384586,0.033,146.31,146.26,88.6927]
[1741216389394,0.033,146.31,146.26,7.7927]
[1741216390199,0.033,146.31,146.25,0.03]
[1741216390493,0.033,146.31,146.25,11.81292724]
[1741216392780,0.033,146.31,146.25,0.03]
[1741216393181,81.0,146.3,146.25,0.03]
[1741216393590,82.44747669,146.3,146.25,0.03]
[1741216398091,81.0,146.29,146.25,0.03]
[1741216400409,18.64964886,146.27,146.25,0.03]
[1741216400605,82.44747669,146.26,146.25,0.03]
[1741216402781,83.98787669,146.26,146.25,0.03]
[1741216403284,102.63752555,146.26,146.25,0.03]
[1741216403914,105.9989738,146.26,146.25,0.03]
[1741216404113,105.9989738,146.26,146.24,0.03]
[1741216404114,24.9989738,146.26,146.24,0.03]
[1741216404415,24.9989738,146.26,146.19,0.03]
[1741216404416,18.64964886,146.25,146.19,0.03]
[1741216404714,18.64964886,146.23,146.19,0.03]
[1741216404895,1.44747669,146.22,146.19,0.03]
[1741216405085,82.44747669,146.22,146.19,0.03]
[1741216410015,81.0,146.21,146.19,0.03]
[1741216411087,80.64772727,146.21,146.19,0.03]
[1741216418422,84.06016806,146.21,146.19,0.03]
[1741216420025,84.09316806,146.21,146.19,0.03]
[1741216421927,80.64772727,146.2,146.19,0.03]
[1741216423239,3.03907669,146.2,146.13,0.03]
[1741216423534,99.64964886,146.19,146.13,0.03]
[1741216423713,18.64964886,146.17,146.13,0.03]
[1741216424033,82.44747669,146.16,146.13,0.03]
[1741216424336,99.64964886,146.15,146.13,0.03]
[1741216424510,1.44747669,146.14,146.13,0.03]
[1741216428138,1.44747669,146.17,146.13,0.03]
[1741216428709,18.64964886,146.16,146.13,0.03]
[1741216428908,1.44747669,146.15,146.13,0.03]
[1741216429947,1.44747669,146.16,146.13,0.03]
[1741216431829,1.5809,146.15,146.13,0.03]
[1741216432127,101.09712555,146.14,146.11,0.03]
[1741216432326,18.64964886,146.12,146.11,0.03]
[1741216432534,20.09712555,146.12,146.1,0.03]
[1741216433247,20.09712555,146.12,146.05,0.03]
[1741216433248,99.64964886,146.11,146.05,0.03]
[1741216433415,101.09712555,146.1,146.05,0.03]
[1741216434830,1.44747669,146.1,146.05,0.03]
[1741216435037,1.44747669,146.13,146.05,0.03]
[1741216435215,82.44747669,146.13,146.05,0.03]
[1741216435618,82.44747669,146.13,146.05,6.8769]
[1741216436949,82.44747669,146.13,146.07,6.6283]
[1741216438336,82.44747669,146.13,146.07,13.4743]
[1741216438550,82.44747669,146.13,146.07,6.6283]
[1741216439447,82.44747669,146.13,146.07,13.4743]
[1741216440121,82.44747669,146.13,146.07,6.6283]
[1741216442221,82.44747669,146.13,146.07,13.4742]
[1741216442422,82.44747669,146.13,146.07,6.6283]
[1741216442751,81.0,146.12,146.07,6.6283]
[1741216446852,18.64964886,146.11,146.05,6.8769]
[1741216447048,18.64964886,146.11,146.05,0.03]
[1741216447049,81.0,146.1,146.05,0.03]
[1741216448053,81.0,146.1,146.05,6.8767]
[1741216448969,81.0,146.1,146.05,0.03]
[1741216449572,81.0,146.1,146.05,312.03]
[1741216450362,81.0,146.1,146.05,0.03]
[1741216455169,80.5,146.1,146.05,0.03]
[1741216455368,81.94747669,146.1,146.05,0.03]
[1741216455567,100.59712555,146.1,146.05,0.03]
[1741216456254,20.09712555,146.1,146.05,0.03]
[1741216456460,18.64964886,146.1,146.05,0.03]
[1741216457241,20.09712555,146.1,146.05,0.03]
[1741216458263,18.64964886,146.1,146.05,0.03]
[1741216458959,1.44747669,146.12,146.05,6.6574]
[1741216459145,81.0,146.11,146.05,6.6574]
[1741216459677,81.0,146.1,146.05,13.5043]
[1741216460247,81.0,146.12,146.05,13.5043]
[1741216461061,1.44747669,146.11,146.05,6.6574]
[1741216462045,82.44747669,146.12,146.05,6.6574]
[1741216462444,82.44747669,146.12,146.05,13.5042]
[1741216463465,81.0,146.11,146.05,13.5042]
[1741216465071,81.033,146.13,146.06,13.42252724]
[1741216465572,80.533,146.13,146.06,13.42252724]
[1741216466548,80.533,146.13,146.06,20.26852724]
[1741216467961,80.533,146.13,146.06,8.5156]
[1741216468161,80.533,146.13,146.06,1.6696]
[1741216468475,1.44747669,146.12,146.06,1.6696]
[1741216469172,18.64964886,146.1,146.06,0.03]
[1741216469376,1.44747669,146.09,146.06,0.03]
[1741216469678,81.98047669,146.09,146.06,0.03]
[1741216469970,99.18264886,146.08,146.06,0.03]
[1741216470172,81.98047669,146.07,146.06,0.03]
[1741216473246,20.09712555,146.07,146.06,0.03]
[1741216478279,30.8094051,146.07,146.06,0.03]
[1741216479877,20.09712555,146.07,146.06,0.03]
[1741216489687,1.44747669,146.07,146.04,0.03]
[1741216490184,18.64964886,146.06,146.04,0.03]
[1741216490388,99.64964886,146.06,146.04,0.03]
[1741216492200,1.44747669,146.05,146.04,0.03]
[1741216492568,20.09712555,146.06,146.04,0.03]
[1741216493495,20.09712555,146.08,146.04,0.03]
[1741216493681,18.64964886,146.06,146.04,0.03]
[1741216493884,20.09712555,146.06,146.04,0.03]
[1741216496489,1.44747669,146.06,146.04,0.03]
[1741216498666,81.0,146.07,146.05,6.5674]
[1741216500089,10.71227955,146.08,146.05,6.5674]
[1741216500275,10.71227955,146.08,146.04,0.03]
[1741216500478,1.44747669,146.07,146.04,0.03]
[1741216501082,1.44747669,146.08,146.04,0.03]
[1741216503388,18.64964886,146.07,146.04,0.03]
[1741216503594,1.44747669,146.06,146.04,0.03]
[1741216503793,1.44747669,146.08,146.04,0.03]
[1741216504171,95.092421,146.09,146.05,6.2339]
[1741216504172,10.71227955,146.09,146.05,6.2339]
[1741216504391,10.71227955,146.09,146.05,18.01682724]
[1741216505675,10.71227955,146.09,146.06,11.78292724]
[1741216505894,10.71227955,146.09,146.05,18.01682724]
[1741216506571,10.71227955,146.09,146.05,24.86342724]
[1741216506980,10.71227955,146.09,146.05,6.2339]
[1741216507188,81.0,146.12,146.05,13.0808]
[1741216507585,81.0,146.12,146.05,24.86372724]
[1741216508773,81.0,146.12,146.05,13.0808]
[1741216509292,81.0,146.12,146.05,24.86372724]
[1741216509505,81.0,146.12,146.07,11.78292724]
[1741216509685,81.0,146.12,146.08,18.00732724]
[1741216509879,0.033,146.13,146.08,18.00732724]
[1741216510472,0.033,146.13,146.09,6.845]
[1741216510787,0.033,146.13,146.08,336.85262724]
[1741216513401,0.033,146.13,146.1,13.32502724]
[1741216514103,0.033,146.13,146.1,1.5421]
[1741216514896,0.033,146.13,146.08,6.2244]
[1741216515085,81.033,146.13,146.08,6.2244]
[1741216515314,1.44747669,146.12,146.08,6.2244]
[1741216515797,81.0,146.11,146.06,1.5254]
[1741216515997,1.44747669,146.1,146.06,1.5254]
[1741216516183,1.44747669,146.1,146.04,6.2943]
[1741216517407,82.44747669,146.1,146.04,6.2943]
[1741216517601,18.64964886,146.09,146.04,6.2943]
[1741216517903,82.44747669,146.1,146.04,6.2943]
[1741216517904,81.0,146.1,146.04,6.2943]
[1741216518302,82.44747669,146.1,146.04,6.2943]
[1741216519806,81.0,146.1,146.04,6.2943]
[1741216522107,81.0,146.1,146.04,24.75459915]
[1741216522302,81.0,146.1,146.05,18.46029915]
[1741216522909,81.0,146.12,146.05,18.46029915]
[1741216523290,81.0,146.12,146.05,25.30699915]
[1741216523611,81.0,146.12,146.08,1.5583]
[1741216523803,10.74527955,146.13,146.09,6.2109]
[1741216524591,10.74527955,146.13,146.09,24.67119915]
[1741216524991,10.74527955,146.13,146.09,105.57119915]
[1741216525204,10.74527955,146.13,146.09,417.57119915]
[1741216525405,10.74527955,146.13,146.09,424.41609915]
[1741216525591,10.74527955,146.13,146.1,18.46029915]
[1741216526399,0.033,146.13,146.1,18.46029915]
[1741216526798,0.033,146.12,146.1,18.46029915]
[1741216527000,0.033,146.12,146.09,417.57119915]
[1741216527198,0.033,146.12,146.09,399.1109]
[1741216527395,0.033,146.12,146.09,87.1109]
[1741216532615,0.033,146.12,146.09,6.2109]
[1741216532823,0.033,146.12,146.08,1.5583]
[1741216535620,0.033,146.12,146.08,8.4037]
[1741216535926,0.033,146.12,146.08,338.86399915]
[1741216537922,0.033,146.12,146.08,394.4583]
[1741216539426,0.033,146.12,146.09,18.46029915]
[1741216539626,0.033,146.12,146.1,6.6011]
[1741216540025,0.033,146.12,146.1,13.4453]
[1741216540522,0.033,146.12,146.1,112.80559915]
[1741216541227,0.033,146.12,146.11,18.46029915]
[1741216541427,0.033,146.12,146.11,99.36029915]
[1741216541722,0.033,146.12,146.11,80.9]
[1741216544320,0.033,146.12,146.08,1.5583]
[1741216545428,0.033,146.12,146.09,18.46029915]
[1741216545721,0.033,146.12,146.09,99.36029915]
[1741216545928,0.033,146.12,146.1,18.46029915]
[1741216546310,0.033,146.12,146.1,312.0]
[1741216547014,0.033,146.12,146.1,318.8446]
[1741216548707,0.033,146.12,146.1,312.0]
[1741216549025,0.033,146.12,146.09,80.9]
[1741216549729,0.033,146.12,146.08,1.5583]
[1741216550110,0.033,146.12,146.08,8.4037]
[1741216550507,0.033,146.12,146.08,26.86399915]
[1741216552022,0.033,146.12,146.08,338.86399915]
[1741216553933,0.033,146.12,146.08,355.97789915]
[1741216554617,0.033,146.12,146.1,18.46029915]
[1741216555022,0.033,146.12,146.09,18.46029915]
[1741216555612,0.033,146.12,146.09,99.36029915]
[1741216555821,0.033,146.12,146.09,87.7446]
[1741216557312,0.033,146.12,146.09,99.54817334]
[1741216557513,0.033,146.12,146.09,411.54817334]
[1741216557914,0.033,146.12,146.09,399.7446]
[1741216558123,0.033,146.12,146.09,392.9]
[1741216558512,0.033,146.12,146.09,80.9]
[1741216558922,0.033,146.12,146.09,87.745]
[1741216559134,0.033,146.12,146.09,99.54857334]
[1741216559440,0.033,146.12,146.09,116.66127334]
[1741216559837,0.033,146.12,146.1,11.80357334]
[1741216561010,0.033,146.12,146.11,6.8441]
[1741216561617,0.033,146.12,146.11,411.54767334]
[1741216562539,0.033,146.12,146.11,418.09747334]
[1741216564435,0.033,146.12,146.11,106.09747334]
[1741216566118,0.033,146.19,146.12,20.37131043]
[1741216566313,0.033,146.19,146.18,11.80357334]
[1741216566517,0.033,146.19,146.18,92.70357334]
[1741216567337,0.033,146.19,146.18,404.70357334]
[1741216567537,0.033,146.19,146.18,411.54437334]
[1741216568628,0.033,146.19,146.18,418.15862115]
[1741216570523,0.033,146.19,146.18,182.50583158]
[1741216573542,0.033,146.19,146.18,494.50583158]
[1741216573859,0.033,146.19,146.18,467.31782115]
[1741216574533,0.033,146.19,146.18,474.15862115]
[1741216575954,0.033,146.19,146.18,467.31782115]
[1741216576129,0.033,146.19,146.18,155.31782115]
[1741216576529,0.033,146.19,146.18,99.31782115]
[1741216577029,0.033,146.19,146.18,106.15862115]
[1741216579250,0.033,146.19,146.18,418.15862115]
[1741216581027,0.033,146.19,146.18,436.95043158]
[1741216581224,0.033,146.19,146.18,124.95043158]
[1741216581553,0.033,146.19,146.18,126.38617266]
[1741216582053,0.033,146.19,146.18,263.28617266]
[1741216582242,0.033,146.19,146.18,261.85043158]
[1741216584254,0.033,146.19,146.18,573.85043158]
[1741216584639,0.0001,146.19,146.18,574.27691629]
[1741216584843,0.033,146.21,146.2,38.79181043]
[1741216585044,0.033,146.21,146.2,58.64509628]
[1741216586253,0.033,146.21,146.2,283.28499628]
[1741216586447,0.033,146.21,146.2,281.84953158]
[1741216586830,0.033,146.21,146.2,282.13385472]
[1741216587934,0.033,146.21,146.2,594.13385472]
[1741216588535,0.033,146.21,146.2,587.21005427]
[1741216588735,0.033,146.21,146.2,567.0678927]
[1741216589056,0.033,146.21,146.2,567.21005427]
[1741216589562,0.033,146.21,146.2,547.63834384]
[1741216589735,0.033,146.21,146.2,410.73834384]
[1741216592364,0.033,146.21,146.2,98.73834384]
[1741216594254,0.033,146.21,146.2,235.63834384]
[1741216595451,0.033,146.21,146.2,547.63834384]
[1741216596443,0.033,146.21,146.2,535.86]
[1741216596658,0.033,146.21,146.2,80.9]
[1741216601357,0.033,146.21,146.2,99.51824384]
[1741216601559,0.033,146.21,146.2,92.67834384]
[1741216602362,0.033,146.21,146.2,80.9]
[1741216604075,0.033,146.21,146.2,92.67834384]
[1741216604370,0.033,146.21,146.2,80.9]
[1741216605742,0.033,146.21,146.2,392.9]
[1741216609568,0.033,146.21,146.2,399.7399]
[1741216610972,0.033,146.21,146.2,87.7399]
[1741216611873,0.033,146.21,146.2,236.56040541]
[1741216612054,0.033,146.21,146.2,255.21005427]
[1741216612572,0.033,146.27,146.21,18.79181043]
[1741216612765,0.033,146.27,146.26,11.77834384]
[1741216613072,0.033,146.27,146.26,217.8]
[1741216613951,0.033,146.27,146.26,529.8]
[1741216615055,0.033,146.27,146.26,548.41544384]
[1741216615757,0.033,146.27,146.26,236.41544384]
[1741216618774,0.033,146.27,146.26,548.41544384]
[1741216619675,0.033,146.27,146.26,567.20725427]
[1741216620459,0.033,146.27,146.26,548.41544384]
[1741216620875,0.033,146.27,146.26,217.8]
[1741216622276,0.033,146.27,146.26,80.9]
[1741216622860,0.033,146.27,146.22,18.61724384]
[1741216623770,0.033,146.27,146.22,80.9]
[1741216623976,0.033,146.27,146.22,392.9]
[1741216625283,0.033,146.27,146.22,411.51734384]
[1741216625472,0.033,146.27,146.23,11.77834384]
[1741216625658,0.033,146.27,146.22,411.51734384]
[1741216626579,0.033,146.27,146.22,392.9]
[1741216627082,0.033,146.27,146.22,399.7389]
[1741216627677,0.033,146.27,146.22,411.51724384]
[1741216628391,0.033,146.27,146.22,399.7389]
[1741216629092,0.033,146.27,146.22,87.7389]
[1741216629285,0.033,146.27,146.22,80.9]